bitfinex-derivatives/quotes_BTCF0:USTF0_20251118
["timestamp","ask_amount","ask_price","bid_price","bid_amount"]
[1763429070659,0.66857,92039.0,92038.0,0.02204]
[1763429070860,0.40493,92039.0,92038.0,0.02204]
[1763429071059,0.75428903,92039.0,92038.0,0.02204]
[1763429071264,0.75428903,92039.0,92023.0,0.3608]
[1763429071265,0.04413,92024.0,92023.0,0.3608]
[1763429071464,0.30786465,92024.0,92023.0,0.3608]
[1763429072856,0.30786465,92024.0,92023.0,0.4044]
[1763429073054,0.04413,92021.0,92020.0,0.00073267]
[1763429074058,0.3608,92023.0,92022.0,0.0436]
[1763429074260,0.04413,92021.0,92020.0,0.00073267]
[1763429074458,0.04413,92021.0,92020.0,0.02277267]
[1763429074865,0.04413,92021.0,92020.0,0.04433267]
[1763429076465,0.04413,92021.0,92020.0,0.00073267]
[1763429076662,0.04413,92021.0,92020.0,0.04433267]
[1763429077059,0.001,92021.0,92020.0,0.04433267]
[1763429077462,0.04429296,92048.0,92047.0,0.0436]
[1763429077663,0.30996803,92040.0,92039.0,0.0436]
[1763429077869,0.26583803,92040.0,92039.0,0.0436]
[1763429079371,0.28786803,92040.0,92039.0,0.0436]
[1763429079568,0.30996803,92040.0,92039.0,0.0436]
[1763429079872,0.04413,92039.0,92038.0,0.00016296]
[1763429080068,0.02203,92039.0,92038.0,0.04376296]
[1763429080265,0.3520346,92040.0,92039.0,0.0436]
[1763429080573,0.3750646,92040.0,92039.0,0.0436]
[1763429080765,0.3530346,92040.0,92039.0,0.0436]
[1763429081267,0.3520346,92040.0,92039.0,0.0436]
[1763429082972,0.3530346,92040.0,92039.0,0.0436]
[1763429083271,0.3971646,92040.0,92039.0,0.02204]
[1763429084266,0.3971646,92040.0,92039.0,0.0436]
[1763429084267,0.3530346,92040.0,92039.0,0.0436]
[1763429084769,0.04413,92039.0,92038.0,0.00016296]
[1763429084976,0.04413,92039.0,92038.0,0.02220296]
[1763429085170,0.04413,92039.0,92038.0,0.00016296]
[1763429086479,0.3530346,92040.0,92016.0,0.38284]
[1763429086480,0.04413,92017.0,92016.0,0.38284]
[1763429086864,0.2636,92019.0,92006.0,0.04387172]
[1763429086865,0.04413,92007.0,92006.0,0.04387172]
[1763429087678,0.04413,92007.0,92006.0,0.00027172]
[1763429088176,0.13020085,92007.0,92006.0,0.00027172]
[1763429088375,0.04413,92007.0,92006.0,0.00027172]
[1763429088578,0.62659803,92010.0,91999.0,0.3608]
[1763429088579,0.04413,92000.0,91999.0,0.3608]
[1763429088772,0.04413,91991.0,91990.0,0.38284]
[1763429088974,0.30773,91991.0,91990.0,0.38284]
[1763429089170,0.30773,91991.0,91990.0,0.38357267]
[1763429089482,0.30773,91991.0,91990.0,0.36153267]
[1763429089675,0.3608,92002.0,92001.0,0.0436]
[1763429089980,0.04413,92001.0,92000.0,0.02277267]
[1763429091373,0.04413,92001.0,92000.0,0.00073267]
[1763429091582,0.00219803,92000.0,91992.0,0.01357]
[1763429091772,0.04413,91993.0,91992.0,0.03561]
[1763429092079,0.04413,91991.0,91990.0,0.36153267]
[1763429092973,0.04413,91991.0,91990.0,0.40513267]
[1763429093172,0.2636,91993.0,91992.0,0.05717]
[1763429093971,0.04413,91991.0,91990.0,0.36153267]
[1763429094179,0.04413,91991.0,91990.0,0.38357267]
[1763429094372,0.2636,91993.0,91992.0,0.05717]
[1763429094876,0.04413,91991.0,91990.0,0.00073267]
[1763429095080,0.00219803,91990.0,91982.0,0.01357]
[1763429095277,0.04413,91983.0,91982.0,0.03561]
[1763429095577,0.04413,91983.0,91982.0,0.05717]
[1763429095782,0.30777,91983.0,91982.0,0.05717]
[1763429096371,0.26364,91983.0,91982.0,0.05717]
[1763429096978,0.30754,91983.0,91982.0,0.05717]
[1763429098378,0.26364,91983.0,91982.0,0.05717]
[1763429098578,0.28675,91983.0,91982.0,0.05717]
[1763429098780,0.26364,91983.0,91982.0,0.05717]
[1763429098983,0.00016306,91995.0,91982.0,0.05717]
[1763429099284,0.00219803,91990.0,91989.0,0.04563]
[1763429099480,0.00219803,91990.0,91980.0,0.00073267]
[1763429099481,0.04498,91976.0,91960.0,0.01357]
[1763429099778,0.40578,91976.0,91975.0,0.05052261]
[1763429099980,0.40578,91976.0,91975.0,0.00489261]
[1763429100183,0.04498,91971.0,91970.0,0.00073267]
[1763429100379,0.04498,91967.0,91960.0,0.01357]
[1763429100583,0.40578,91967.0,91960.0,0.01357]
[1763429100786,0.40578,91967.0,91951.0,0.3608]
[1763429101379,0.04498,91952.0,91951.0,0.3608]
[1763429101583,0.04498,91946.0,91945.0,0.02287054]
[1763429101885,0.04498,91946.0,91935.0,0.00489474]
[1763429101886,0.04498,91936.0,91935.0,0.00489474]
[1763429102182,0.00219803,91940.0,91939.0,0.04563]
[1763429102388,0.04717803,91940.0,91939.0,0.04563]
[1763429102687,0.04498,91936.0,91935.0,0.00489474]
[1763429102883,0.3176321,91936.0,91935.0,0.00589474]
[1763429103391,0.3176321,91936.0,91935.0,0.00254854]
[1763429103683,0.04498,91927.0,91913.0,0.3608]
[1763429103878,0.04498,91914.0,91913.0,0.3608]
[1763429104075,0.04508822,91914.0,91913.0,0.34197356]
[1763429104391,0.00219803,91910.0,91895.0,0.05052687]
[1763429104592,0.04498,91901.0,91900.0,0.02347267]
[1763429104980,0.02311,91896.0,91895.0,0.00489687]
[1763429105293,0.40578,91896.0,91895.0,0.00489687]
[1763429105789,0.49418553,91896.0,91895.0,0.00489687]
[1763429106390,0.13338553,91896.0,91895.0,0.02763687]
[1763429106784,0.13338553,91896.0,91895.0,0.00489687]
[1763429107086,0.04498,91896.0,91895.0,0.05052687]
[1763429107283,0.26372,91898.0,91897.0,0.05844]
[1763429108189,0.3087,91898.0,91897.0,0.04563]
[1763429108388,0.26372,91898.0,91897.0,0.05844]
[1763429109582,0.3087,91898.0,91897.0,0.05844]
[1763429110285,0.02311,91896.0,91895.0,0.00489687]
[1763429110480,0.26372,91898.0,91897.0,0.05844]
[1763429110886,0.372667,91898.0,91897.0,0.05844]
[1763429111077,0.372667,91898.0,91897.0,0.04563]
[1763429111078,0.417647,91898.0,91897.0,0.04563]
[1763429111283,0.372667,91898.0,91897.0,0.05844]
[1763429111788,0.372667,91898.0,91897.0,0.41924]
[1763429112190,0.26372,91898.0,91897.0,0.41924]
[1763429112980,0.00219803,91900.0,91897.0,0.3608]
[1763429113290,0.00219803,91900.0,91899.0,0.04563]
[1763429114487,0.04498,91896.0,91895.0,0.00489687]
[1763429115492,0.00219803,91900.0,91899.0,0.04563]
[1763429115692,0.04717803,91900.0,91899.0,0.04563]
[1763429115996,0.00219803,91900.0,91899.0,0.04563]
[1763429117295,0.04717803,91900.0,91899.0,0.04563]
[1763429117496,0.04498,91896.0,91895.0,0.00489687]
[1763429117805,0.04498,91896.0,91895.0,0.05052687]
[1763429118691,0.04498,91885.0,91884.0,0.02274]
[1763429118890,0.00010067,91885.0,91884.0,0.05769]
[1763429119499,0.02181067,91885.0,91884.0,0.05769]
[1763429119686,0.00010067,91885.0,91884.0,0.05769]
[1763429121406,0.3608,91897.0,91896.0,0.05699]
[1763429121602,0.26388,91903.0,91902.0,0.04371]
[1763429121991,0.3608,91914.0,91904.0,0.04371]
[1763429122998,0.3608,91913.0,91911.0,0.04371]
[1763429123294,0.3608,91913.0,91896.0,0.01328]
[1763429123295,0.00219803,91910.0,91896.0,0.01328]
[1763429123501,0.00219803,91910.0,91909.0,0.04371]
[1763429124799,0.00016315,91912.0,91910.0,0.00219803]
[1763429124800,1.18e-06,91912.0,91910.0,0.00219803]
[1763429125100,0.00100118,91912.0,91911.0,0.04371]
[1763429125394,0.40563,91912.0,91910.0,0.00219803]
[1763429125602,0.04483,91911.0,91910.0,0.00219803]
[1763429125800,0.00073267,91910.0,91891.0,0.3608]
[1763429126000,0.38251,91903.0,91902.0,0.04371]
[1763429127102,0.40403,91903.0,91902.0,0.04371]
[1763429127690,0.40503,91903.0,91902.0,0.04371]
[1763429127889,0.04473,91901.0,91900.0,0.00219803]
[1763429128094,0.02321,91894.0,91893.0,0.04416324]
[1763429128399,0.3618,91903.0,91893.0,0.04416324]
[1763429128703,0.00073267,91900.0,91899.0,0.02159]
[1763429128905,0.00073267,91900.0,91899.0,0.044]
[1763429129290,0.02394267,91900.0,91899.0,0.044]
[1763429129495,0.00073267,91900.0,91899.0,0.044]
[1763429129905,0.02394267,91900.0,91899.0,0.044]
[1763429130306,0.00073267,91900.0,91899.0,0.044]
[1763429131407,0.36096324,91912.0,91911.0,0.044]
[1763429132402,0.38417324,91912.0,91911.0,0.044]
[1763429133293,0.38417324,91912.0,91910.0,0.00219803]
[1763429133294,0.04473,91911.0,91910.0,0.00219803]
[1763429133592,0.36096324,91912.0,91899.0,0.3608]
[1763429133593,0.04473,91900.0,91899.0,0.3608]
[1763429133795,0.00073267,91900.0,91899.0,0.4048]
[1763429133993,0.36096324,91912.0,91908.0,0.01296]
[1763429134206,0.62584324,91912.0,91911.0,0.044]
[1763429134601,0.67057324,91912.0,91911.0,0.044]
[1763429134806,0.62584324,91912.0,91911.0,0.044]
[1763429135003,0.62584324,91912.0,91910.0,0.00219803]
[1763429135004,0.04473,91911.0,91910.0,0.00219803]
[1763429135306,0.04473,91911.0,91910.0,0.02378803]
[1763429135503,0.04473,91911.0,91910.0,0.00219803]
[1763429135703,0.00073267,91910.0,91894.0,0.03886128]
[1763429135902,0.00073267,91910.0,91900.0,0.00219803]
[1763429136103,0.40553,91904.0,91903.0,0.02159]
[1763429136411,0.04473,91901.0,91900.0,0.00219803]
[1763429137301,0.04473,91894.0,91881.0,0.03886128]
[1763429137503,0.40553,91894.0,91893.0,0.02175324]
[1763429137706,0.66941,91894.0,91893.0,0.04416324]
[1763429137939,0.66941,91894.0,91893.0,0.00016324]
[1763429138506,0.75469771,91894.0,91893.0,0.00016324]
[1763429138813,0.49081771,91894.0,91893.0,0.00016324]
[1763429139005,0.75469771,91894.0,91893.0,0.00016324]
[1763429139605,0.00219803,91890.0,91872.0,0.01296]
[1763429139799,0.3608,91880.0,91879.0,0.044]
[1763429140006,0.36299803,91880.0,91879.0,0.044]
[1763429140608,0.40772803,91880.0,91872.0,0.01296]
[1763429140808,0.36299803,91880.0,91879.0,0.044]
[1763429141015,0.40772803,91880.0,91879.0,0.044]
[1763429141715,0.40772803,91880.0,91873.0,0.02172466]
[1763429141716,0.04473,91874.0,91873.0,0.02172466]
[1763429141924,0.04003997,91874.0,91873.0,0.02172466]
[1763429142413,0.30391997,91874.0,91873.0,0.00013466]
[1763429142726,0.30391997,91874.0,91847.0,1.5]
[1763429142727,0.0427,91856.0,91852.0,0.03886128]
[1763429142908,0.4035,91856.0,91851.0,0.03886128]
[1763429143211,0.4035,91856.0,91847.0,1.5]
[1763429143618,0.40363066,91856.0,91847.0,1.5]
[1763429144115,0.0427,91848.0,91847.0,1.5]
[1763429144313,0.66756251,91848.0,91847.0,1.5]
[1763429144524,0.0427,91847.0,91846.0,0.0002722]
[1763429144822,0.03904166,91847.0,91827.0,0.044]
[1763429145012,0.0427,91829.0,91828.0,1.5]
[1763429145207,0.00011209,91829.0,91828.0,1.5]
[1763429145415,0.02146209,91829.0,91828.0,1.5]
[1763429145815,0.04281209,91829.0,91828.0,1.5]
[1763429146221,0.0427,91816.0,91815.0,0.00490113]
[1763429146527,0.0427,91816.0,91815.0,0.04890113]
[1763429146528,0.26409762,91816.0,91815.0,0.04890113]
[1763429146910,0.30679762,91816.0,91815.0,0.02649113]
[1763429147816,0.30679762,91816.0,91815.0,0.04990113]
[1763429148523,0.30683762,91816.0,91815.0,0.04990113]
[1763429149119,0.26413762,91816.0,91815.0,0.04990113]
[1763429149418,0.30683762,91816.0,91815.0,0.00590113]
[1763429151443,0.30683762,91816.0,91815.0,0.04990113]
[1763429151716,0.30683762,91816.0,91815.0,0.00590113]
[1763429151921,0.30683762,91816.0,91815.0,0.04990113]
[1763429152120,0.26413762,91816.0,91815.0,0.04990113]
[1763429152719,9.762e-05,91816.0,91815.0,0.04990113]
[1763429153627,0.04279762,91816.0,91815.0,0.04990113]
[1763429153816,0.02144762,91816.0,91815.0,0.04990113]
[1763429154417,9.762e-05,91816.0,91815.0,0.04990113]
[1763429157521,0.00016333,91825.0,91824.0,0.05672]
[1763429158125,0.26412,91839.0,91836.0,0.01352]
[1763429158329,0.26412,91839.0,91838.0,0.0432]
[1763429158829,0.26418691,91839.0,91838.0,1.5432]
[1763429159020,6.691e-05,91839.0,91838.0,1.5432]
[1763429159218,0.00016333,91848.0,91847.0,0.0432]
[1763429159425,0.00016333,91848.0,91847.0,0.404]
[1763429159826,0.3608,91856.0,91855.0,0.0432]
[1763429160229,0.40319,91856.0,91855.0,0.0219]
[1763429160424,0.40319,91856.0,91847.0,0.3608]
[1763429160824,0.02103,91848.0,91847.0,0.404]
[1763429161326,0.00016333,91861.0,91860.0,0.0432]
[1763429161534,0.00016333,91861.0,91860.0,0.05616]
[1763429162734,0.00016333,91861.0,91860.0,0.0432]
[1763429162936,0.04255333,91861.0,91860.0,0.0432]
[1763429163435,0.04239,91852.0,91851.0,0.00016333]
[1763429163934,0.04139,91852.0,91851.0,0.00016333]
[1763429164330,0.04139,91852.0,91851.0,0.02206333]
[1763429164533,0.04139,91852.0,91851.0,0.00016333]
[1763429165435,0.3608,91855.0,91854.0,0.0432]
[1763429165634,0.00016333,91861.0,91853.0,0.3608]
[1763429165635,0.04239,91860.0,91853.0,0.3608]
[1763429165838,0.40538803,91860.0,91851.0,0.00016333]
[1763429166230,0.04239,91852.0,91851.0,0.00016333]
[1763429166632,0.40319,91852.0,91851.0,0.04336333]
[1763429166837,0.04239,91852.0,91851.0,0.04336333]
[1763429167040,0.02103,91852.0,91851.0,0.04336333]
[1763429167639,0.04239,91852.0,91851.0,0.00016333]
[1763429170238,0.04239,91852.0,91851.0,3.33e-06]
[1763429170644,0.04239,91839.0,91838.0,1.5]
[1763429171234,0.04239,91839.0,91815.0,0.36570113]
[1763429171235,0.04239,91828.0,91820.0,0.03886128]
[1763429171541,0.04239,91820.0,91815.0,0.36570113]
[1763429171735,0.04458803,91820.0,91816.0,1.5]
[1763429171936,0.04239,91817.0,91816.0,1.5]
[1763429172936,0.04239,91817.0,91816.0,1.501]
[1763429174140,0.00219803,91820.0,91819.0,0.0219]
[1763429174346,0.00219803,91820.0,91816.0,1.501]
[1763429174347,0.04239,91817.0,91816.0,1.501]
[1763429175041,0.00219803,91820.0,91819.0,0.0432]
[1763429175242,0.04239,91817.0,91816.0,1.0442]
[1763429175446,0.04139,91816.0,91815.0,0.00490113]
[1763429175846,0.04139,91816.0,91815.0,0.01998113]
[1763429176141,0.04139,91816.0,91815.0,1.51998113]
[1763429176341,0.00219803,91820.0,91819.0,0.01508]
[1763429176745,0.00219803,91820.0,91812.0,0.3608]
[1763429176949,0.00016333,91827.0,91825.0,0.1090333]
[1763429177335,0.01329,91848.0,91833.0,0.1090231]
[1763429177537,0.01329,91848.0,91824.0,0.26416]
[1763429177538,0.00219803,91840.0,91834.0,0.2642]
[1763429177741,0.00219803,91840.0,91838.0,0.3608]
[1763429178449,0.05018,91839.0,91838.0,0.3608]
[1763429178649,0.05018,91839.0,91838.0,0.38264]
[1763429179151,0.05018,91839.0,91838.0,0.02184]
[1763429179354,0.03111803,91840.0,91839.0,0.02184]
[1763429179546,0.05807,91839.0,91838.0,0.3618]
[1763429179750,0.05807,91839.0,91838.0,0.38364]
[1763429179947,0.00219803,91840.0,91839.0,0.02184]
[1763429180250,0.05807,91839.0,91838.0,0.3618]
[1763429180451,0.05807,91839.0,91838.0,0.38364]
[1763429181254,0.05807,91839.0,91838.0,0.001]
[1763429181750,0.0451,91836.0,91835.0,1.5]
[1763429181950,0.07425,91836.0,91835.0,1.5]
[1763429182351,0.00219803,91840.0,91839.0,0.02384]
[1763429182552,0.06026803,91840.0,91839.0,0.01192]
[1763429182947,0.03111803,91840.0,91839.0,0.02384]
[1763429183249,0.04626333,91848.0,91847.0,0.02384]
[1763429183441,0.00016333,91848.0,91847.0,0.02384]
[1763429183643,0.05807,91847.0,91846.0,0.38464]
[1763429184243,0.05807,91847.0,91846.0,0.02384]
[1763429184443,0.01734333,91848.0,91847.0,0.02384]
[1763429184643,0.43621333,91848.0,91839.0,0.001]
[1763429184850,0.00219803,91840.0,91839.0,0.02484]
[1763429185049,0.06026803,91840.0,91839.0,0.02484]
[1763429185243,0.42106803,91840.0,91839.0,0.001]
[1763429185553,0.42106803,91840.0,91835.0,1.5]
[1763429185554,0.07525,91836.0,91835.0,1.5]
[1763429186246,0.05807,91831.0,91830.0,0.00016333]
[1763429186447,0.68303,91831.0,91830.0,0.00016333]
[1763429186648,0.68303,91831.0,91830.0,1.50016333]
[1763429187541,0.68203,91831.0,91830.0,1.50016333]
[1763429189652,0.05441,91814.0,91813.0,0.3608]
[1763429189853,0.05660803,91810.0,91808.0,0.03895124]
[1763429190053,0.05441,91809.0,91807.0,0.03895124]
[1763429190349,0.00219803,91810.0,91806.0,0.00027231]
[1763429190350,0.05441,91807.0,91806.0,0.00027231]
[1763429190543,0.41521,91807.0,91806.0,0.00027231]
[1763429190948,0.41421,91807.0,91806.0,0.00027231]
[1763429191656,0.41421,91807.0,91806.0,0.00127231]
[1763429191956,0.41421,91807.0,91806.0,0.01277231]
[1763429192746,0.41421,91807.0,91806.0,0.00127231]
[1763429193847,0.41421,91807.0,91798.0,0.00011363]
[1763429193848,0.05441,91799.0,91798.0,0.00011363]
[1763429194045,0.05441,91798.0,91778.0,0.03895124]
[1763429194347,0.00219803,91790.0,91789.0,0.02324]
[1763429194655,0.02893803,91790.0,91789.0,0.02324]
[1763429194847,0.00219803,91790.0,91789.0,0.02324]
[1763429195048,0.02802831,91790.0,91789.0,0.02324]
[1763429195251,0.05569831,91790.0,91789.0,0.02324]
[1763429195459,0.00128831,91790.0,91789.0,0.02324]
[1763429195959,9.028e-05,91790.0,91789.0,0.02324]
[1763429196148,0.00016342,91799.0,91798.0,0.02324]
[1763429196849,0.28042,91812.0,91798.0,0.02324]
[1763429196850,0.26412,91812.0,91811.0,0.02291]
[1763429197350,0.33483,91812.0,91811.0,0.02291]
[1763429197948,0.33483,91812.0,91810.0,0.001]
[1763429197949,0.05441,91811.0,91810.0,0.001]
[1763429198246,0.02674,91811.0,91810.0,0.0239]
[1763429198446,0.28042,91812.0,91810.0,0.001]
[1763429198447,0.0163,91812.0,91810.0,0.001]
[1763429198644,0.05441,91811.0,91810.0,0.001]
[1763429198843,0.05441,91811.0,91810.0,0.0239]
[1763429199059,0.05441,91805.0,91804.0,0.3608]
[1763429199253,0.05441,91803.0,91802.0,0.01161342]
[1763429199445,0.05441,91803.0,91802.0,0.00016342]
[1763429200651,0.0163,91812.0,91811.0,0.0229]
[1763429201248,0.07071,91812.0,91811.0,0.0229]
[1763429202859,0.3608,91817.0,91816.0,0.0229]
[1763429203659,0.3771,91817.0,91816.0,0.0229]
[1763429203861,0.40384,91817.0,91816.0,0.0229]
[1763429204059,0.43151,91817.0,91816.0,0.01145]
[1763429204259,0.43151,91817.0,91816.0,0.0229]
[1763429204462,0.0163,91817.0,91816.0,0.0229]
[1763429205356,0.04304,91817.0,91816.0,0.0229]
[1763429205564,0.07071,91817.0,91816.0,0.01145]
[1763429205764,0.05441,91813.0,91812.0,0.3608]
[1763429206072,0.05441,91813.0,91812.0,0.37225]
[1763429206267,0.05441,91813.0,91812.0,0.3837]
[1763429207659,0.04304,91817.0,91816.0,0.0229]
[1763429208270,0.07071,91817.0,91816.0,0.0229]
[1763429208468,0.07071,91817.0,91812.0,0.3608]
[1763429208469,0.05441,91813.0,91812.0,0.3608]
[1763429208671,0.05441,91811.0,91810.0,0.001]
[1763429209169,0.05441,91811.0,91810.0,0.01245]
[1763429209864,0.05441,91811.0,91810.0,0.0239]
[1763429210371,0.05441,91811.0,91810.0,0.001]
[1763429210764,0.05441,91805.0,91804.0,0.3608]
[1763429211266,0.0163,91806.0,91802.0,0.00016342]
[1763429211267,0.05441,91803.0,91802.0,0.00016342]
[1763429212267,0.05441,91803.0,91802.0,0.02306342]
[1763429214961,0.05441,91803.0,91802.0,0.00016342]
[1763429215166,0.31857,91803.0,91802.0,0.00016342]
[1763429215666,0.05441,91803.0,91802.0,0.00016342]
[1763429216263,0.05441,91795.0,91793.0,0.03895124]
[1763429216473,0.05441,91794.0,91793.0,0.03895124]
[1763429217072,0.05372,91791.0,91790.0,0.001]
[1763429217463,0.05332,91787.0,91786.0,0.05811213]
[1763429217771,0.05332,91783.0,91782.0,0.05811213]
[1763429217964,0.05332,91782.0,91781.0,0.05811213]
[1763429218165,0.05332,91782.0,91768.0,0.07814494]
[1763429218166,0.05332,91776.0,91768.0,0.07814494]
[1763429218364,0.05332,91776.0,91750.0,0.01427]
[1763429218365,0.05332,91767.0,91766.0,0.02714243]
[1763429218574,0.05232,91767.0,91766.0,0.05313243]
[1763429219180,0.05232,91767.0,91766.0,0.00027243]
[1763429219365,0.05132,91767.0,91766.0,0.00027243]
[1763429220068,0.05332,91756.0,91755.0,0.06585971]
[1763429220275,0.05232,91756.0,91755.0,0.06585971]
[1763429220472,0.05232,91756.0,91755.0,0.05286]
[1763429221371,0.00219803,91760.0,91755.0,0.05286]
[1763429221576,0.02853803,91760.0,91759.0,0.05286]
[1763429221879,0.05551803,91760.0,91759.0,0.05286]
[1763429222666,0.05551803,91760.0,91755.0,0.05386]
[1763429222667,0.05332,91756.0,91755.0,0.05386]
[1763429223377,0.05232,91756.0,91755.0,0.05286]
[1763429223976,0.00016342,91776.0,91775.0,0.05286]
[1763429224185,0.0163,91800.0,91773.0,0.01427]
[1763429224186,0.3608,91794.0,91793.0,0.05286]
[1763429224376,0.05332,91800.0,91799.0,0.05286]
[1763429224578,0.05551803,91800.0,91799.0,0.05286]
[1763429225184,0.05551803,91800.0,91784.0,0.37507]
[1763429225185,0.05332,91795.0,91784.0,0.37507]
[1763429225381,0.05332,91785.0,91784.0,0.02687]
[1763429225776,0.3608,91796.0,91780.0,0.00016342]
[1763429225777,0.05332,91781.0,91780.0,0.00016342]
[1763429225979,0.05332,91781.0,91780.0,0.02703342]
[1763429226178,0.05332,91781.0,91780.0,0.05302342]
[1763429226582,0.02634,91781.0,91780.0,0.05302342]
[1763429227281,0.3608,91796.0,91795.0,0.05286]
[1763429227477,0.65142,91796.0,91795.0,0.05286]
[1763429227783,0.38714,91796.0,91795.0,0.05286]
[1763429228178,0.02634,91789.0,91788.0,0.02687]
[1763429228479,0.02634,91789.0,91788.0,0.05286]
[1763429228885,0.05332,91789.0,91788.0,0.05286]
[1763429229275,0.05332,91786.0,91785.0,0.3608]
[1763429229489,0.05332,91781.0,91780.0,0.00016342]
[1763429229686,0.05332,91781.0,91780.0,0.02703342]
[1763429229876,0.05332,91781.0,91780.0,0.00016342]
[1763429230578,0.05332,91781.0,91765.0,0.3608]
[1763429230579,0.05332,91766.0,91765.0,0.3608]
[1763429231384,0.05332,91755.0,91754.0,0.3608]
[1763429232690,0.05332,91755.0,91746.0,0.3608]
[1763429232905,0.0481,91747.0,91746.0,0.3608]
[1763429233080,0.31238,91747.0,91740.0,0.01427]
[1763429233383,0.31238,91747.0,91737.0,0.36090449]
[1763429233384,0.0481,91738.0,91737.0,0.36090449]
[1763429233582,0.0481,91738.0,91737.0,0.38777449]
[1763429233788,0.0471,91738.0,91737.0,0.38777449]
[1763429233996,0.0471,91738.0,91737.0,0.41376449]
[1763429234190,0.00219803,91740.0,91739.0,0.05286]
[1763429234594,0.00219803,91740.0,91739.0,0.04586]
[1763429234784,0.05551803,91740.0,91739.0,0.04586]
[1763429234990,0.05332,91738.0,91737.0,0.36090449]
[1763429235291,0.05332,91738.0,91737.0,0.38777449]
[1763429235590,0.02634,91738.0,91737.0,0.05296449]
[1763429235791,0.00219803,91740.0,91739.0,0.05286]
[1763429236193,0.02853803,91740.0,91739.0,0.05286]
[1763429236890,0.05551803,91740.0,91739.0,0.05286]
[1763429237488,0.00219803,91740.0,91739.0,0.05286]
[1763429237692,0.3608,91758.0,91743.0,0.05286]
[1763429237992,0.3608,91758.0,91757.0,0.05286]
[1763429238587,0.41105,91758.0,91757.0,0.05286]
[1763429238991,0.41105,91758.0,91757.0,0.02687]
[1763429239192,0.04747,91753.0,91744.0,0.3608]
[1763429239393,0.00219803,91750.0,91749.0,0.04872]
[1763429239699,0.02575803,91750.0,91749.0,0.04872]
[1763429239891,0.04747,91745.0,91744.0,0.3608]
[1763429240091,0.04747,91738.0,91737.0,0.00010449]
[1763429240598,0.04747,91728.0,91727.0,0.3608]
[1763429240793,0.04747,91727.0,91726.0,0.00027255]
[1763429241301,0.04747,91707.0,91706.0,0.3608]
[1763429241509,0.3608,91736.0,91702.0,0.00471616]
[1763429241510,0.00219803,91710.0,91709.0,0.04872]
[1763429241801,0.00231091,91710.0,91709.0,0.04872]
[1763429243093,0.00011288,91710.0,91709.0,0.04872]
[1763429243400,0.00016351,91716.0,91715.0,0.06381]
[1763429243401,3.51e-06,91716.0,91715.0,0.06381]
[1763429243694,0.3608,91731.0,91730.0,0.04872]
[1763429243896,0.3608,91739.0,91738.0,0.04872]
[1763429244403,0.00219803,91740.0,91739.0,0.04872]
[1763429246591,0.3608,91747.0,91746.0,0.04872]
[1763429246799,0.00016351,91749.0,91748.0,0.04786]
[1763429247303,0.00016351,91749.0,91742.0,0.01509]
[1763429247304,0.40654351,91749.0,91742.0,0.01509]
[1763429247606,0.40654351,91749.0,91748.0,0.02378]
[1763429247795,0.40654351,91749.0,91742.0,0.01509]
[1763429248304,0.40654351,91749.0,91748.0,0.02378]
[1763429248503,0.40654351,91749.0,91742.0,0.01509]
[1763429249897,0.02279,91743.0,91742.0,0.01509]
[1763429250298,0.36096351,91749.0,91748.0,0.04839]
[1763429250798,0.00016351,91749.0,91748.0,0.04839]
[1763429254501,0.00016351,91749.0,91746.0,0.3608]
[1763429254502,0.3608,91763.0,91762.0,0.04839]
[1763429256594,0.00027243,91766.0,91765.0,0.04839]
[1763429258106,0.04619243,91766.0,91765.0,0.04839]
[1763429258302,0.04592,91765.0,91764.0,0.42337]
[1763429259107,0.04592,91765.0,91764.0,0.06257]
[1763429260107,0.04592,91765.0,91755.0,0.3608]
[1763429260108,0.00219803,91760.0,91755.0,0.3608]
[1763429260314,0.02515803,91760.0,91759.0,0.04839]
[1763429261504,0.04811803,91760.0,91759.0,0.02378]
[1763429261811,0.04811803,91760.0,91759.0,0.04839]
[1763429263012,0.04592,91754.0,91753.0,0.00016351]
[1763429263815,0.04592,91754.0,91753.0,0.04855351]
[1763429265811,0.04592,91754.0,91753.0,0.02394351]
[1763429267611,0.04592,91754.0,91753.0,0.00016351]
[1763429269112,0.04592,91754.0,91753.0,0.04855351]
[1763429270410,0.36107243,91766.0,91765.0,0.04839]
[1763429270717,0.38403243,91766.0,91765.0,0.04839]
[1763429270922,0.04592,91761.0,91760.0,0.03796]
[1763429271123,0.04592,91761.0,91760.0,0.06257]
[1763429271306,0.40672,91761.0,91760.0,0.06257]
[1763429271518,0.40672,91761.0,91753.0,0.04855351]
[1763429271519,0.02296,91754.0,91753.0,0.04855351]
[1763429271807,0.3608,91761.0,91760.0,0.04839]
[1763429271808,0.40672,91761.0,91760.0,0.04839]
[1763429273415,0.40672,91761.0,91760.0,0.02378]
[1763429273917,0.40672,91761.0,91760.0,0.04839]
[1763429274708,0.04592,91754.0,91753.0,0.04855351]
[1763429275911,0.40672,91761.0,91760.0,0.04839]
[1763429276118,0.40672,91761.0,91760.0,0.02378]
[1763429276519,0.40672,91761.0,91760.0,0.04839]
[1763429276909,0.40672,91761.0,91760.0,0.06234]
[1763429277113,0.03542,91754.0,91753.0,0.04721351]
[1763429277323,0.03542,91754.0,91753.0,0.00016351]
[1763429277516,0.03542,91754.0,91753.0,0.04721351]
[1763429278222,0.03542,91754.0,91753.0,0.00016351]
[1763429278614,0.29974,91758.0,91757.0,0.04705]
[1763429278815,0.00219803,91760.0,91759.0,0.04705]
[1763429279014,0.26651803,91760.0,91759.0,0.04705]
[1763429279619,0.00027243,91766.0,91765.0,0.04705]
[1763429280224,0.01798243,91766.0,91765.0,0.04705]
[1763429280423,0.03569243,91766.0,91760.0,0.01395]
[1763429280630,0.39622,91761.0,91760.0,0.01395]
[1763429281124,0.03542,91756.0,91755.0,0.06204971]
[1763429281330,0.00921601,91756.0,91755.0,0.02306]
[1763429281830,0.00219803,91760.0,91759.0,0.04705]
[1763429282032,0.00219803,91760.0,91753.0,0.00016351]